fUSD/lending_fUSD_20240715
["ID","MTS","AMOUNT","RATE_DAILY","PERIOD"]
[332191833,1721025034308,-886.1,0.00013973,2]
[332191834,1721025034318,-433.05679363,0.00013989,2]
[332191835,1721025034327,-359.3985593,0.00013989,2]
[332191836,1721025034337,-3109.5637573,0.00013998,2]
[332191837,1721025034346,-82.50660618,0.00013998,2]
[332191838,1721025034362,-1200.0,0.00013998,2]
[332191839,1721025034373,-4169.35750322,0.00013998,2]
[332191840,1721025034382,-1905.64249678,0.00013998,2]
[332191841,1721025034393,-700.0,0.00013998,2]
[332191842,1721025034410,-459.92029315,0.00013998,2]
[332191843,1721025034431,-21363.28444297,0.00013998,2]
[332191844,1721025034441,-1461.4828066,0.00013998,2]
[332191845,1721025034450,-306.45665119,0.00013999,2]
[332191846,1721025034460,-500.0,0.00013999,2]
[332191847,1721025034469,-150.48172675,0.00013999,2]
[332191848,1721025034478,-423.05877703,0.00013999,2]
[332191849,1721025034487,-500.0,0.00013999,2]
[332191850,1721025034496,-317.80732162,0.00013999,2]
[332191851,1721025034506,-500.0,0.00013999,2]
[332191852,1721025034515,-500.0,0.00013999,2]
[332191853,1721025034524,-500.0,0.00013999,2]
[332191854,1721025034533,-500.0,0.00013999,2]
[332191855,1721025034542,-849.98,0.00013999,2]
[332191856,1721025034552,-500.0,0.00013999,2]
[332191857,1721025034561,-500.0,0.00013999,2]
[332191858,1721025034570,-163.52,0.00013999,2]
[332191859,1721025034580,-500.0,0.00013999,2]
[332191860,1721025034590,-500.0,0.00013999,2]
[332191861,1721025034599,-500.0,0.00013999,2]
[332191862,1721025034609,-500.0,0.00013999,2]
[332191863,1721025034618,-233.41112811,0.00013999,2]
[332191864,1721025034628,-1727.9,0.00013999,2]
[332191865,1721025034637,-975.09,0.00013999,2]
[332191866,1721025034647,-500.0,0.00013999,2]
[332191867,1721025034655,-500.0,0.00013999,2]
[332191868,1721025034665,-193.83550993,0.00013999,2]
[332191869,1721025034674,-333.62905527,0.00013999,2]
[332191873,1721025038110,-347.9736861,0.00013999,2]
[332191874,1721025038121,-366.78339208,0.00013999,2]
[332191875,1721025038132,-183.10386655,0.00013999,2]
[332191876,1721025038142,-705.41613103,0.00014,2]
[332191877,1721025038153,-1891.41,0.00014,2]
[332191878,1721025038309,-474.75933617,0.00014,2]
[332191879,1721025038321,-2199.44251202,0.00014,2]
[332191880,1721025038332,-378.52299311,0.00014,2]
[332191881,1721025038343,-280.407,0.00014,2]
[332192044,1721025040193,-305.05999998,0.00014,2]
[332192046,1721025040207,-315.21,0.00014,2]
[332192069,1721025040420,-250.0,0.00014,2]
[332192071,1721025040432,-1299.31817423,0.00014,2]
[332192073,1721025040443,-507.34276049,0.00014,2]
[332192076,1721025040454,-4015.90228756,0.00014,2]
[332192077,1721025040466,-457.84999989,0.00014,2]
[332192086,1721025040539,-502.23,0.00014,2]
[332192399,1721025043578,-879.85432892,0.00014,2]
[332192401,1721025043589,-404.83116397,0.00014,2]
[332192404,1721025043600,-345.020001,0.00014,2]
[332192436,1721025043908,-2222.79023695,0.00014,2]
[332192438,1721025043919,-708.70999995,0.00014,2]
[332192441,1721025043930,-367.2,0.00014,2]
[332192623,1721025046158,-1525.8,0.00014,2]
[332192625,1721025046169,-331.28,0.00014,2]
[332192638,1721025046283,-198397.77626046,0.00014,2]
[332192640,1721025046292,-117356.49160432,0.00014,2]
[332192653,1721025046412,-768.85,0.00014,2]
[332192658,1721025046451,-809.31309923,0.00014,2]
[332192778,1721025149209,666.0,0.00027,120]
[332192803,1721025662610,295.48,0.00010959,2]
[332192804,1721025695651,1368.73674718,0.00010959,2]
[332192805,1721025704883,155.42086569,0.00010959,2]
[332192806,1721025718306,8180.36238713,0.00010959,2]
[332192807,1721025718328,10000.0,0.00010959,2]
[332192808,1721025718351,10000.0,0.00010959,2]
[332192809,1721025718376,10000.0,0.00010959,2]
[332192810,1721025718400,10000.0,0.00010959,2]
[332192812,1721025861739,4503.79663518,0.00027,120]
[332192813,1721025882925,304.28703391,0.00027,120]
[332192837,1721026236044,-653.15,0.00010448,2]
[332192838,1721026236053,-300.0,0.00011097,2]
[332192839,1721026236063,-463.35873498,0.00011098,2]
[332192840,1721026236073,-19.66680636,0.00011098,2]
[332192841,1721026236084,-135.33319364,0.00011098,2]
[332192842,1721026236094,-280.63388429,0.00011098,2]
[332192843,1721026236391,-308.00872426,0.00011098,2]
[332192844,1721026236400,-2374.42341092,0.00011098,2]
[332192845,1721026236410,-5500.67791474,0.00011098,2]
[332192846,1721026236421,-1356.53886756,0.00011098,2]
[332192847,1721026236432,-209.87258075,0.00011098,2]
[332192848,1721026236442,-418.22561677,0.00011098,2]
[332192849,1721026236452,-2603.56892328,0.00011098,2]
[332192850,1721026236463,-3398.02074401,0.00011098,2]
[332192851,1721026236474,-855.62711501,0.00011098,2]
[332192852,1721026236484,-528.94058084,0.00011098,2]
[332192853,1721026236493,-253.79028423,0.00011197,2]
[332192855,1721026236503,-156.08364642,0.00012132,2]
[332192856,1721026236512,-847.51187804,0.00012134,2]
[332192857,1721026236524,-152.48812196,0.00012134,2]
[332192858,1721026236533,-420.0,0.00012193,2]
[332192859,1721026236542,-1852.42,0.00012207,2]
[332192860,1721026236552,-150.0,0.00012274,2]
[332192861,1721026236564,-1581.45120427,0.00012382,2]
[332192862,1721026236576,-486.61826601,0.00012382,2]
[332192863,1721026236587,-515.4161314,0.00012382,2]
[332192864,1721026236598,-1163.96,0.00012382,2]
[332192865,1721026236620,-36495.55439832,0.00012382,2]
[332192866,1721026236629,-200.0,0.00012437,2]
[332192867,1721026236638,-250.0,0.00012444,2]
[332192868,1721026236647,-150.0,0.00012533,2]
[332192869,1721026236657,-7349.88155897,0.00012534,2]
[332192870,1721026236668,-14697.42844103,0.00012534,2]
[332192871,1721026236677,-6976.46,0.00012629,2]
[332192872,1721026236687,-653.15,0.00012712,2]
[332192873,1721026236697,-218.23,0.00012889,2]
[332192874,1721026236706,-321.24726326,0.000129,2]
[332192875,1721026236716,-194.16886814,0.000129,2]
[332192876,1721026236726,-26101.10026906,0.00012968,2]
[332192877,1721026236745,-1235.66988396,0.00012968,2]
[332192878,1721026236757,-1898.3477175,0.00012968,2]
[332192879,1721026236768,-5892.7144032,0.00012968,2]
[332192880,1721026236779,-16644.35024115,0.00012968,2]
[332192881,1721026236790,-4265.1967325,0.00012968,2]
[332192883,1721026238374,-1921.952907,0.00012968,2]
[332192884,1721026238385,-16592.60688411,0.00012968,2]
[332192885,1721026238466,-2318.7552802,0.00012968,2]
[332192886,1721026238478,-4599.13075618,0.00012968,2]
[332192887,1721026238489,-24883.80207562,0.00012968,2]
[332192888,1721026238500,-1977.36403992,0.00012968,2]
[332192889,1721026238533,-1485.99999982,0.00012968,2]
[332192890,1721026238544,-1189.99134495,0.00012968,2]
[332192891,1721026238555,-609.55481835,0.00012968,2]
[332192892,1721026238569,-3164.91059741,0.00012968,2]
[332192893,1721026238580,-726.4128775,0.00012968,2]
[332192894,1721026238591,-597.24,0.00012968,2]
[332192895,1721026238606,-58967.04369855,0.00012968,2]
[332192896,1721026238617,-3121.61111413,0.00012968,2]
[332192897,1721026238628,-1014.62182778,0.00012968,2]
[332192898,1721026238639,-359.02259242,0.00012968,2]
[332192899,1721026238650,-556.34975306,0.00012968,2]
[332192900,1721026238661,-1340.01178555,0.00012968,2]
[332192901,1721026238673,-1165.26374629,0.00012968,2]
[332192902,1721026238739,-3511.99297866,0.00012968,2]
[332192903,1721026238750,-66762.56296283,0.00012968,2]
[332193070,1721026240509,-149510.4187123,0.00012968,2]
[332193072,1721026240518,-1250.0,0.00013,2]
[332193074,1721026240528,-499.99,0.00013128,2]
[332193076,1721026240537,-368.10514214,0.00013283,2]
[332193078,1721026240546,-150.0,0.00013378,2]
[332193080,1721026240555,-355.25,0.00013378,2]
[332193082,1721026240565,-220.15,0.00013397,2]
[332193084,1721026240576,-587.0,0.00013398,2]
[332193086,1721026240588,-156.62970523,0.00013413,2]
[332193089,1721026240599,-157.28009544,0.00013421,2]
[332193091,1721026240611,-854.69,0.00013441,2]
[332193093,1721026240622,-838.51,0.00013441,2]
[332193095,1721026240634,-165.05,0.00013478,2]
[332193097,1721026240645,-183.44772533,0.0001349,2]
[332193100,1721026240655,-150.0,0.00013499,2]
[332193102,1721026240665,-159303.4539899,0.000135,2]
[332193104,1721026240679,-184769.17814591,0.000135,2]
[332193106,1721026240692,-1495.79475084,0.000135,2]
[332193109,1721026240705,-2793.57333172,0.000135,2]
[332193111,1721026240719,-13042.14392744,0.000135,2]
[332193116,1721026240752,-82883.83532428,0.000135,2]
[332193118,1721026240767,-51500.21856545,0.000135,2]
[332193121,1721026240780,-466.4373028,0.000135,2]
[332193123,1721026240794,-493.94658305,0.000135,2]
[332193126,1721026240807,-4608.46810061,0.000135,2]
[332193132,1721026240855,-459.55929453,0.000135,2]
[332193134,1721026240868,-1292.76814614,0.000135,2]
[332193136,1721026240882,-51381.54351131,0.000135,2]
[332193139,1721026240895,-42570.58425318,0.000135,2]
[332193141,1721026240908,-465.84469626,0.000135,2]
[332193144,1721026240921,-332.98441238,0.000135,2]
[332193148,1721026240948,-4188.90679257,0.000135,2]
[332193150,1721026240961,-4019.09127962,0.000135,2]
[332193152,1721026240974,-315.6,0.000135,2]
[332193407,1721026243464,-1144.36375668,0.000135,2]
[332193410,1721026243477,-790.18897835,0.000135,2]
[332193412,1721026243492,-2934.19734355,0.000135,2]
[332193415,1721026243505,-3799.999993,0.000135,2]
[332193417,1721026243519,-2743.43994,0.000135,2]
[332193420,1721026243533,-4507.50040909,0.000135,2]
[332193422,1721026243544,-1276.4995102,0.000135,2]
[332193425,1721026243559,-567433.67123664,0.000135,2]
[332193427,1721026243572,-489.29187735,0.000135,2]
[332193441,1721026243695,-1563864.46549621,0.000135,2]
[332193444,1721026243708,-3918.7910805,0.000135,2]
[332193446,1721026243721,-1963.95623651,0.000135,2]
[332193449,1721026243736,-665.76968998,0.000135,2]
[332193451,1721026243749,-1407.6635146,0.000135,2]
[332193454,1721026243762,-899.3916763,0.000135,2]
[332193456,1721026243774,-695.84866301,0.000135,2]
[332193459,1721026243788,-1988.33447934,0.000135,2]
[332193461,1721026243800,-353.9449999,0.000135,2]
[332193733,1721026246508,-359.33794408,0.000135,2]
[332193735,1721026246521,-404.4192757,0.000135,2]
[332193738,1721026246533,-9469.35,0.000135,2]
[332193740,1721026246545,-1207.68777187,0.000135,2]
[332193742,1721026246558,-1437.56601913,0.000135,2]
[332193745,1721026246571,-9491.1,0.000135,2]
[332193749,1721026246603,-345.66,0.000135,2]
[332193751,1721026246615,-4506.06258621,0.000135,2]
[332193754,1721026246628,-5570.45453968,0.000135,2]
[332193756,1721026246640,-817.82184304,0.000135,2]
[332193763,1721026246695,-926.66902096,0.000135,2]
[332193765,1721026246707,-4430.17749951,0.000135,2]
[332193767,1721026246719,-2517.88620001,0.000135,2]
[332193775,1721026246785,-276.90558802,0.000135,2]
[332193777,1721026246798,-1033.59720923,0.000135,2]
[332195441,1721026268644,200.0,0.00027,120]
[332195442,1721026279233,304.93718753,0.00025,60]
[332195449,1721026591516,151.071516,0.00025,66]
[332195450,1721026592223,151.071516,0.00025,66]
[332195451,1721026597486,151.071516,0.00025,67]
[332195452,1721026598219,151.071516,0.00025,67]
[332195453,1721026601809,151.071516,0.00025,68]
[332195454,1721026602516,151.071516,0.00025,68]
[332195455,1721026605997,151.071516,0.00025,69]
[332195456,1721026606802,151.071516,0.00025,69]
[332195457,1721026621107,151.071516,0.00025,72]
[332195458,1721026633625,151.071516,0.00025,73]
[332195459,1721026672554,251.071515,0.00025,74]
[332195460,1721026685520,200.0,0.00025,60]
[332195462,1721026971929,1553.19914758,0.00027,120]
[332195486,1721027431515,-653.26372546,0.00010313,2]
[332195487,1721027431570,-1.77627454,0.00010313,2]
[332195488,1721027431579,-1609.19616097,0.00010859,2]
[332195489,1721027431588,-521.13,0.00010959,2]
[332195490,1721027431598,-300.0,0.00011097,2]
[332195491,1721027431607,-1402.0919625,0.00011098,2]
[332195492,1721027431616,-484.13297627,0.00011098,2]
[332195493,1721027431625,-155.0,0.00011098,2]
[332195494,1721027431635,-296.40559767,0.00011098,2]
[332195495,1721027431644,-157.60959533,0.00011098,2]
[332195496,1721027431653,-155.0,0.00011098,2]
[332195497,1721027431663,-155.0,0.00011098,2]
[332195498,1721027431671,-475.38397705,0.00011098,2]
[332195499,1721027431680,-9973.67262515,0.00011098,2]
[332195500,1721027431690,-209.03744674,0.00011197,2]
[332195501,1721027431699,-150.0,0.00011198,2]
[332195502,1721027431709,-25006.23566241,0.00011199,2]
[332195503,1721027431718,-800.0,0.00011954,2]
[332195504,1721027431733,-468.17,0.00011997,2]
[332195505,1721027431743,-420.0,0.00012193,2]
[332195506,1721027431751,-250.0,0.0001222,2]
[332195507,1721027431763,-250.0,0.0001223,2]
[332195508,1721027431772,-174.59,0.00012238,2]
[332195509,1721027431781,-4855.97,0.00012243,2]
[332195510,1721027431790,-150.0,0.00012251,2]
[332195511,1721027431800,-2885.8,0.00012369,2]
[332195512,1721027431809,-200.0,0.00012434,2]
[332195513,1721027431818,-178.61,0.00012488,2]
[332195514,1721027431828,-920.22705153,0.00012491,2]
[332195515,1721027431837,-655.04,0.00012577,2]
[332195516,1721027431845,-225.41,0.00012794,2]
[332195517,1721027431855,-3401.3234,0.00012868,2]
[332195518,1721027431864,-1000.0,0.00012868,2]
[332195519,1721027431873,-1250.0,0.00013,2]
[332195520,1721027431882,-366.83850843,0.00013128,2]
[332195521,1721027431892,-422.16,0.00013178,2]
[332195522,1721027431901,-200.829784,0.00013396,2]
[332195523,1721027431910,-417.9393649,0.00013396,2]
[332195524,1721027431919,-587.0,0.00013398,2]
[332195525,1721027431929,-606.62284164,0.00013399,2]
[332195526,1721027431938,-11111.7151,0.000134,2]
[332195528,1721027431946,-1517.6786,0.000134,2]
[332195529,1721027431955,-1000.0,0.000134,2]
[332195531,1721027431965,-150.0,0.000134,2]
[332195533,1721027431974,-861.275,0.000134,2]
[332195535,1721027431983,-1839.0515,0.000134,2]
[332195537,1721027431992,-181.44669515,0.000134,2]
[332195539,1721027432001,-156.62970523,0.000134,2]
[332195541,1721027432010,-800.0,0.00013449,2]
[332195543,1721027432019,-266436.70513725,0.000135,2]
[332195546,1721027432031,-271534.83951013,0.000135,2]
[332195548,1721027432042,-329916.60570539,0.000135,2]
[332195550,1721027432053,-2400.0,0.000135,2]
[332195553,1721027432069,-670.78694448,0.000135,2]
[332195555,1721027432080,-889.15149544,0.000135,2]
[332195557,1721027432091,-13277.3434825,0.000135,2]
[332195559,1721027432102,-8570.756,0.000135,2]
[332195561,1721027432113,-9750.41485149,0.000135,2]
[332195564,1721027432125,-4943.83845254,0.000135,2]
[332195566,1721027432136,-442.695,0.000135,2]
[332195568,1721027432147,-494.28267779,0.000135,2]
[332195570,1721027432157,-450.037073,0.000135,2]
[332195572,1721027432168,-14758.376858,0.000135,2]
[332195574,1721027432183,-1320.15039067,0.000135,2]
[332195577,1721027432198,-5936.75602073,0.000135,2]
[332195578,1721027432209,-443.59651498,0.000135,2]
[332195600,1721027437753,-577.99,0.000135,2]
[332195788,1721027439815,-357.52786435,0.000135,2]
[332195790,1721027439827,-1462.53500063,0.000135,2]
[332195804,1721027440029,-2764.4595001,0.000135,2]
[332196104,1721027442899,-793.75897198,0.000135,2]
[332196119,1721027442992,-4115.47231516,0.000135,2]
[332196121,1721027443004,-324.140288,0.000135,2]
[332196123,1721027443015,-1903.54310028,0.000135,2]
[332196125,1721027443025,-8145.08113333,0.000135,2]
[332196381,1721027445869,-3359.4,0.000135,2]
[332196383,1721027445880,-850.0,0.000135,2]
[332196386,1721027445892,-1944.6647616,0.000135,2]
[332196398,1721027446004,-310.39626603,0.000135,2]
[332197574,1721028631807,-10000.0,0.000102,2]
[332197575,1721028631817,-300.0,0.00010299,2]
[332197576,1721028631826,-1154.38732188,0.000103,2]
[332197577,1721028631837,-2695.04311048,0.000103,2]
[332197578,1721028631967,-6150.56956764,0.000103,2]
[332197579,1721028631977,-1193.3201614,0.000104,2]
[332197580,1721028631988,-446.45853724,0.000104,2]
[332197581,1721028631999,-628.42,0.000104,2]
[332197582,1721028632010,-5973.18862995,0.000104,2]
[332197583,1721028632021,-1758.61267141,0.000104,2]
[332197584,1721028632030,-111.77729013,0.00010469,2]
[332197585,1721028632051,-351.89855854,0.00010469,2]
[332197586,1721028632062,-232.24415133,0.00010469,2]
[332197587,1721028632071,-150.0,0.00011097,2]
[332197588,1721028632081,-588.86764954,0.00011098,2]
[332197589,1721028632092,-562.43544538,0.00011098,2]
[332197590,1721028632103,-1094.89027509,0.00011098,2]
[332197592,1721028632114,-251.32942236,0.00011098,2]
[332197594,1721028632127,-160.143072,0.00011098,2]
[332197596,1721028632136,-295.1182402,0.00011098,2]
[332197598,1721028632145,-98.77903688,0.00011098,2]
[332197600,1721028632160,-7190.53009096,0.00011098,2]
[332197602,1721028632170,-3809.56487906,0.00011098,2]
[332197604,1721028632180,-524.43604053,0.00011098,2]
[332197606,1721028632189,-1402.0919625,0.00011199,2]
[332197608,1721028632199,-420.0,0.00011325,2]
[332197610,1721028632208,-287.11,0.00011752,2]
[332197612,1721028632217,-1000.0,0.00011863,2]
[332197614,1721028632226,-2004.57,0.00012035,2]
[332197616,1721028632235,-180.32,0.00012176,2]
[332197618,1721028632244,-155.0,0.00012273,2]
[332197620,1721028632253,-499.99,0.00012386,2]
[332197622,1721028632262,-1027.37860362,0.00012386,2]
[332197624,1721028632274,-3966.44139638,0.00012386,2]
[332197626,1721028632285,-14503.46,0.00012386,2]
[332197628,1721028632294,-250.0,0.00012397,2]
[332197630,1721028632303,-250.0,0.00012427,2]
[332197632,1721028632312,-7576.17491939,0.00012438,2]
[332197634,1721028632324,-16323.82508061,0.00012438,2]
[332197636,1721028632333,-419.63,0.00012441,2]
[332197638,1721028632342,-587.0,0.00012454,2]
[332197640,1721028632351,-423.56,0.00012541,2]
[332197642,1721028632360,-840.5,0.00012541,2]
[332197644,1721028632369,-579.1,0.00012574,2]
[332197646,1721028632379,-1237.4,0.00012583,2]
[332197648,1721028632388,-179.99,0.00012583,2]
[332197650,1721028632398,-695.92,0.00012733,2]
[332197652,1721028632407,-419.63,0.00012741,2]
[332197654,1721028632416,-917.08,0.00012741,2]
[332197656,1721028632425,-832.62,0.00012741,2]
[332197658,1721028632434,-419.63,0.00012741,2]
[332197660,1721028632443,-1460.67,0.0001275,2]
[332197662,1721028632452,-2661.53,0.00012773,2]
[332197664,1721028632461,-3254.05,0.00012773,2]
[332197666,1721028632470,-832.62,0.000128,2]
[332197668,1721028632479,-1663.91,0.000128,2]
[332197670,1721028632488,-200.0,0.00012834,2]
[332197672,1721028632498,-419.63,0.00012841,2]
[332197674,1721028632506,-6100.0,0.00013128,3]
[332197676,1721028632516,-837.86,0.000132,2]
[332197678,1721028632525,-417.93936497,0.00013241,2]
[332197680,1721028632535,-452.7153,0.000133,2]
[332197682,1721028632544,-212.6243,0.000133,2]
[332197684,1721028632553,-1000.0,0.000133,2]
[332197686,1721028632563,-539.033,0.000133,2]
[332197687,1721028632572,-1000.0,0.00013346,2]
[332197689,1721028632581,-12931.87640585,0.00013359,2]
[332197691,1721028632590,-482.77171221,0.0001337,2]
[332197693,1721028632600,-154.145393,0.00013396,2]
[332197695,1721028632609,-164.740525,0.00013396,2]
[332197697,1721028632618,-154.145393,0.00013396,2]
[332197699,1721028632628,-1000.0,0.000134,2]
[332197701,1721028632637,-468.0437,0.000134,2]
[332197703,1721028632646,-97156.2479,0.000134,2]
[332197705,1721028632655,-19441.40232468,0.000134,2]
[332197728,1721028632868,-24175.14347884,0.000134,2]
[332197730,1721028632879,-2281.279,0.000134,2]
[332197810,1721028637886,-250.0,0.00011595,2]
[332197811,1721028637896,-7390.99564165,0.000134,2]
[332197812,1721028637907,-2451.2419581,0.000134,2]
[332197813,1721028637918,-612.18240239,0.000134,2]
[332197814,1721028637960,-11213.51705,0.000134,2]
[332197815,1721028637971,-27134.99999995,0.000134,2]
[332197816,1721028637982,-5546.4269732,0.000134,2]
[332197817,1721028637993,-47776.02367296,0.000134,2]
[332197818,1721028638125,-1587.81759761,0.000134,2]
[332197819,1721028638173,-8341.10600665,0.000134,2]
[332197820,1721028638184,-74812.83449397,0.000134,2]
[332197821,1721028638194,-489.762,0.000134,2]
[332197822,1721028638205,-1000.0,0.000134,2]
[332197823,1721028638214,-156.62970523,0.000134,2]
[332197824,1721028638223,-517.18194327,0.000134,2]
[332197825,1721028638232,-182.51369606,0.00013472,2]
[332197826,1721028638241,-934.54460571,0.00013477,2]
[332197827,1721028638251,-934.54460572,0.00013477,2]
[332197828,1721028638260,-4061.2287,0.00013479,2]
[332197829,1721028638269,-196.98474805,0.0001349,2]
[332197830,1721028638278,-5081.86192814,0.00013499,2]
[332197831,1721028638291,-16601.22862794,0.000135,2]
[332197832,1721028638327,-1098.37402558,0.000135,2]
[332197833,1721028638371,-500.0,0.000135,2]
[332197983,1721028639955,-927.22751103,0.000135,2]
[332197985,1721028639966,-147172.01595512,0.000135,2]
[332197987,1721028639977,-173021.56411381,0.000135,2]
[332197989,1721028639988,-677.49,0.000135,2]
[332197991,1721028639999,-3148.145,0.000135,2]
[332197993,1721028640009,-846.52210567,0.000135,2]
[332197996,1721028640031,-3385.06282993,0.000135,2]
[332197998,1721028640043,-500.0,0.000135,2]
[332197999,1721028640054,-681.43362743,0.000135,2]
[332198001,1721028640065,-4371.83669694,0.000135,2]
[332198003,1721028640076,-116924.05109324,0.000135,2]
[332198005,1721028640087,-1659.03255927,0.000135,2]
[332198007,1721028640098,-14901.43966287,0.000135,2]
[332198010,1721028640109,-539.85301793,0.000135,2]
[332198020,1721028640213,-153999.63102167,0.000135,2]
[332198022,1721028640225,-9171.306,0.000135,2]
[332198025,1721028640236,-335.0867636,0.000135,2]
[332198029,1721028640269,-402.89643277,0.000135,2]
[332198031,1721028640280,-585.97499997,0.000135,2]
[332198033,1721028640293,-11548.30513058,0.000135,2]
[332198035,1721028640304,-15307.17831107,0.000135,2]
[332198037,1721028640315,-3036.57830537,0.000135,2]
[332198039,1721028640326,-258.11,0.000135,2]
[332198041,1721028640337,-500.0,0.000135,2]
[332198044,1721028640352,-481.01725746,0.000135,2]
[332198046,1721028640362,-3106.99666799,0.000135,2]
[332198048,1721028640374,-771.144,0.000135,2]
[332198051,1721028640385,-6496.46948832,0.000135,2]
[332198053,1721028640397,-511.70455756,0.000135,2]
[332198322,1721028643097,-543.69150453,0.000135,2]
[332198324,1721028643108,-3557.93768484,0.000135,2]
[332198349,1721028643351,-5023.54713158,0.000135,2]
[332198597,1721028650752,-10000.0,0.000133,2]
[332198599,1721029222513,4017.7558725,0.00025,60]
[332198602,1721029504774,16000.0,0.00027,120]
[332198614,1721029831968,-684.75,0.00010159,2]
[332198615,1721029831978,-150.0,0.00011068,2]
[332198616,1721029831988,-150.0,0.00011097,2]
[332198617,1721029831997,-795.39276793,0.00011098,2]
[332198618,1721029832007,-988.30912647,0.00011098,2]
[332198619,1721029832016,-3943.18230849,0.00011098,2]
[332198620,1721029832026,-1288.85358658,0.00011098,2]
[332198621,1721029832035,-220.33475092,0.00011098,2]
[332198622,1721029832044,-533.66826194,0.00011098,2]
[332198623,1721029832054,-264.94029447,0.00011098,2]
[332198624,1721029832063,-475.38397705,0.00011098,2]
[332198625,1721029832072,-886.92063115,0.00011098,2]
[332198626,1721029832082,-347.93601262,0.00011098,2]
[332198627,1721029832091,-476.27705513,0.00011098,2]
[332198628,1721029832101,-210.48795943,0.00011098,2]
[332198629,1721029832110,-188.2598793,0.00011098,2]
[332198630,1721029832119,-250.70645294,0.00011098,2]
[332198631,1721029832129,-2493.97582663,0.00011098,2]
[332198632,1721029832138,-156.33663135,0.00011098,2]
[332198633,1721029832147,-2884.00026217,0.00011098,2]
[332198634,1721029832156,-627.00038312,0.00011098,2]
[332198635,1721029832166,-164.02052985,0.00011098,2]
[332198636,1721029832175,-3858.59894812,0.00011098,2]
[332198637,1721029832185,-306.26,0.00011098,2]
[332198638,1721029832194,-296.40559767,0.00011098,2]
[332198639,1721029832203,-293.58472622,0.00011098,2]
[332198640,1721029832212,-484.13297627,0.00011098,2]
[332198641,1721029832222,-209.03744674,0.00011098,2]
[332198642,1721029832231,-284.50694175,0.00011098,2]
[332198643,1721029832240,-1266.3458359,0.00011098,2]
[332198644,1721029832250,-155.0,0.00011098,2]
[332198645,1721029832259,-1701.73386935,0.00011098,2]
[332198646,1721029832268,-2497.52279237,0.00011098,2]
[332198647,1721029832278,-661.5113541,0.00011197,2]
[332198648,1721029832287,-12821.48857263,0.00011199,2]
[332198649,1721029832296,-1261.47598793,0.00011199,2]
[332198650,1721029832306,-447.13,0.00011886,2]
[332198651,1721029832315,-150.0,0.00011954,2]
[332198652,1721029832325,-200.02,0.00011964,2]
[332198653,1721029832334,-600.0,0.00011991,2]
[332198655,1721029832346,-250.0,0.00012136,2]
[332198656,1721029832355,-275.46,0.00012208,2]
[332198657,1721029832364,-1243.5,0.00012208,2]
[332198658,1721029832373,-17864.81,0.00012208,2]
[332198659,1721029832382,-2359.75,0.00012208,2]
[332198660,1721029832392,-499.99,0.00012273,2]
[332198662,1721029832401,-150.99,0.00012273,2]
[332198664,1721029832411,-156.0,0.00012273,2]
[332198666,1721029832420,-9999.99,0.00012302,2]
[332198668,1721029832431,-684.75,0.00012423,2]
[332198670,1721029832441,-205.39,0.00012587,2]
[332198672,1721029832450,-215.74,0.00012588,2]
[332198674,1721029832459,-178.42,0.00012598,2]
[332198676,1721029832469,-400.0,0.00012794,2]
[332198678,1721029832480,-11630.83,0.00012794,2]
[332198680,1721029832489,-24725.52964614,0.0001281,2]
[332198681,1721029832502,-8009.0,0.00012968,2]
[332198683,1721029832512,-1250.0,0.00013,2]
[332198685,1721029832521,-891.77725223,0.00013,5]
[332198687,1721029832531,-1058.14,0.00013069,2]
[332198689,1721029832542,-303.59,0.00013069,2]